[Event "106th British-ch 2019"]
[Site "Torquay"]
[Date "2019.07.29"]
[Round "3.26"]
[White "Holland, Chris Kd"]
[Black "Kahn, Tito"]
[Result "1-0"]
[ECO "A85"]
[WhiteElo "2143"]
[BlackElo "1921"]
[Annotator "NA"]
[PlyCount "81"]
[EventDate "2019.07.27"]
[EventType "swiss"]
[EventCountry "GBR"]
[SourceTitle "playchess.com"]
[Source "ChessBase"]
[SourceQuality "1"]
[TimeControl "40/5400+30:1800+30"]

1. c4 {[%emt 0:00:00]} f5 {[%emt 0:00:00]} 2. Nc3 {[%emt 0:00:00]} Nf6 {[%emt 0:00:15]} 3. d4 {[%emt 0:00:59]} e6 {[%emt 0:00:18]} 4. Qc2 {[%emt 0:00:20]} Bb4 {[%emt 0:00:22]} 5. e3 {[%emt 0:03:00]} b6 {[%emt 0:00:29]} 6. f3 {[%emt 0:00:58]} Bb7 {[%emt 0:00:26]} 7. Bd3 {[%emt 0:04:40]} Nh5 {[%emt 0:12:28]} 8. Nh3 {[%emt 0:20:53]} Qh4+ {[%emt 0:03:54]} 9. Nf2 {[%emt 0:00:30]} O-O 10. g3 {[%emt 0:00:30]} Qe7 {[%emt 0:01:00]} 11. Qe2 {[%emt 0:00:30]} c5 {[%emt 0:00:30]} 12. a3 {[%emt 0:00:30]} Bxc3+ {[%emt 0:00:30]} 13. bxc3 {[%emt 0:00:30]} d5 {[%emt 0:00:30]} 14. O-O {[%emt 0:00:30]} Nd7 {[%emt 0:00:30]} 15. cxd5 {[%emt 0:00:30]} exd5 {[%emt 0:00:30]} 16. e4 {[%emt 0:00:30]} Rae8 {[%emt 0:00:30]} 17. e5 {[%emt 0:00:30]} g5 {[%emt 0:00:30]} 18. a4 {[%emt 0:00:30]} Ng7 {[%emt 0:00:30]} 19. Ba3 {[%emt 0:00:30]} Ne6 {[%emt 0:00:30]} 20. a5 {[%emt 0:00:30]} Bc6 {[%emt 0:00:30]} 21. Rfb1 {[%emt 0:00:30]} Qg7 {[%emt 0:00:30]} 22. Bb5 {[%emt 0:00:30]} Bxb5 {[%emt 0:00:30]} 23. Qxb5 {[%emt 0:00:30]} Rf7 {[%emt 0:00:30]} 24. axb6 {[%emt 0:00:30]} axb6 {[%emt 0:00:30]} 25. Bb2 {[%emt 0:00:30]} Rc8 {[%emt 0:00:30]} 26. Qa6 {[%emt 0:00:30]} Rff8 {[%emt 0:00:30]} 27. Qb7 {[%emt 0:00:30]} Nc7 {[%emt 0:00:30]} 28. Qc6 {[%emt 0:00:30]} Rfd8 {[%emt 0:00:30]} 29. Ra7 {[%emt 0:00:30]} Nxe5 {[%emt 0:00:30]} 30. dxe5 {[%emt 0:00:30]} Qxe5 {[%emt 0:00:30]} 31. Qxb6 {[%emt 0:00:30]} d4 {[%emt 0:00:30]} 32. cxd4 {[%emt 0:00:30]} cxd4 {[%emt 0:00:30]} 33. Qh6 {[%emt 0:00:30]} Rd6 {[%emt 0:00:30]} 34. Qxg5+ {[%emt 0:00:30]} Rg6 {[%emt 0:00:30]} 35. Qd2 {[%emt 0:00:30]} Nb5 {[%emt 0:00:30]} 36. Ra5 {[%emt 0:00:30]} Rc5 {[%emt 0:00:30]} 37. Nd3 {[%emt 0:00:30]} Qd6 {[%emt 0:00:30]} 38. Nxc5 {[%emt 0:00:30]} Qxc5 {[%emt 0:00:30]} 39. Rc1 {[%emt 0:00:30]} Qb6 {[%emt 0:00:30]} 40. Rxb5 {[%emt 0:00:30]} Qxb5 {[%emt 0:00:30]} 41. Qxd4 {[%emt 0:30:30]} 1-0

[Event "106th British-ch 2019"]
[Site "Torquay"]
[Date "2019.07.29"]
[Round "3.27"]
[White "Jaufarally, Nadia"]
[Black "Krzyzanowski, Patryk"]
[Result "1/2-1/2"]
[ECO "B35"]
[WhiteElo "1944"]
[BlackElo "2114"]
[Annotator "ChessBase"]
[PlyCount "124"]
[EventDate "2019.07.27"]
[EventType "swiss"]
[EventCountry "GBR"]
[SourceTitle "playchess.com"]
[Source "ChessBase"]
[SourceQuality "1"]
[TimeControl "40/5400+30:1800+30"]

1. e4 {[%emt 0:00:00]} c5 {[%emt 0:00:00]} 2. Nf3 {[%emt 0:00:00]} g6 {[%emt 0:00:03]} 3. d4 {[%emt 0:00:00]} cxd4 {[%emt 0:00:11]} 4. Nxd4 {[%emt 0:00:00]} Nc6 {[%emt 0:00:09]} 5. Be3 {[%emt 0:01:10]} Nf6 {[%emt 0:01:02]} 6. Nc3 {[%emt 0:00:23]} Bg7 {[%emt 0:00:11]} 7. Bc4 {[%emt 0:02:10]} Qa5 {[%emt 0:01:35]} 8. O-O {[%emt 0:05:09]} O-O {[%emt 0:00:30]} 9. Bb3 {[%emt 0:01:26]} b5 {[%emt 0:15:19]} 10. a3 {[%emt 0:14:47]} Ng4 {[%emt 0:18:50]} 11. Nxc6 {[%emt 0:14:33]} dxc6 {[%emt 0:01:03]} 12. Bc5 {[%emt 0:00:43]} Qc7 {[%emt 0:02:45]} 13. f4 {[%emt 0:03:34]} a5 {[%emt 0:17:31]} 14. Qf3 {[%emt 0:11:22]} Nf6 {[%emt 0:11:11]} 15. e5 {[%emt 0:16:45]} Nd7 {[%emt 0:02:16]} 16. Bxe7 {[%emt 0:01:15]} Nxe5 {[%emt 0:00:29]} 17. fxe5 {[%emt 0:00:28]} Qxe7 {[%emt 0:00:09]} 18. Qxc6 {[%emt 0:01:24]} Qa7+ {[%emt 0:14:22]} 19. Kh1 {[%emt 0:01:23]} Bd7 {[%emt 0:05:45]} 20. Qd5 {[%emt 0:06:12]} Be6 {[%emt 0:01:34]} 21. Qxb5 {[%emt 0:00:32]} Rab8 {[%emt 0:00:41]} 22. Qa4 {[%emt 0:04:04]} Bxb3 {[%emt 0:01:14]} 23. cxb3 {[%emt 0:00:08]} Qb6 {[%emt 0:01:08]} 24. b4 {[%emt 0:07:11]} axb4 {[%emt 0:00:57]} 25. Nd5 {[%emt 0:00:27]} Qd4 {[%emt 0:00:20]} 26. Ne7+ {[%emt 0:00:23]} Kh8 {[%emt 0:00:16]} 27. Nc6 {[%emt 0:00:19]} Qd7 {[%emt 0:00:18]} 28. axb4 {[%emt 0:00:15]} Rbe8 {[%emt 0:01:08]} 29. Rfd1 {[%emt 0:06:04]} Qc7 {[%emt 0:00:50]} 30. Rac1 {[%emt 0:02:10]} Rc8 {[%emt 0:00:47]} 31. h3 {[%emt 0:00:33]} Rfe8 {[%emt 0:00:47]} 32. Na7 {[%emt 0:00:35]} Qxc1 {[%emt 0:00:15]} 33. Qxe8+ {[%emt 0:00:18]} Rxe8 {[%emt 0:00:20]} 34. Rxc1 {[%emt 0:00:03]} Bxe5 {[%emt 0:00:15]} 35. Re1 {[%emt 0:00:35]} Re6 {[%emt 0:00:29]} 36. b5 {[%emt 0:00:57]} f6 {[%emt 0:01:33]} 37. Nc6 {[%emt 0:00:24]} Kg7 {[%emt 0:00:10]} 38. g4 {[%emt 0:00:40]} h6 {[%emt 0:00:19]} 39. Kg2 {[%emt 0:00:17]} Kf8 {[%emt 0:00:59]} 40. Kf3 {[%emt 0:00:41]} Ke8 {[%emt 0:00:37]} 41. Re4 {[%emt 0:12:28]} Kd7 {[%emt 0:01:26]} 42. Nxe5+ {[%emt 0:00:27]} fxe5 {[%emt 0:00:12]} 43. Rb4 {[%emt 0:07:29]} Rf6+ {[%emt 0:01:23]} 44. Ke3 {[%emt 0:00:24]} Rb6 {[%emt 0:03:49]} 45. Kd3 {[%emt 0:02:17]} Kc7 {[%emt 0:10:00]} 46. Kc4 {[%emt 0:01:58]} Rf6 {[%emt 0:01:52]} 47. Kd5 {[%emt 0:05:11]} Rf4 {[%emt 0:00:40]} 48. Rb3 {[%emt 0:01:21]} e4 {[%emt 0:02:21]} 49. Rc3+ {[%emt 0:00:42]} Kb6 {[%emt 0:02:37]} 50. Rc6+ {[%emt 0:02:01]} Kxb5 {[%emt 0:00:28]} 51. Rxg6 {[%emt 0:00:17]} e3 {[%emt 0:00:27]} 52. Rxh6 {[%emt 0:01:25]} Re4 {[%emt 0:00:23]} 53. Kxe4 {[%emt 0:00:37]} e2 {[%emt 0:00:06]} 54. g5 {[%emt 0:00:15]} e1=Q+ {[%emt 0:00:16]} 55. Kf5 {[%emt 0:00:07]} Qf2+ {[%emt 0:01:21]} 56. Kg6 {[%emt 0:00:22]} Kc6 {[%emt 0:02:31]} 57. Kh7+ {[%emt 0:00:29]} Kd7 {[%emt 0:00:16]} 58. g6 {[%emt 0:00:28]} Qf5 {[%emt 0:02:17]} 59. Kh8 {[%emt 0:00:46]} Qf8+ {[%emt 0:07:24]} 60. Kh7 {[%emt 0:00:05]} Qf5 {[%emt 0:00:47]} 61. Kh8 {[%emt 0:00:06]} Qf8+ {[%emt 0:00:59]} 62. Kh7 {[%emt 0:00:04]} Qf5 {[%emt 0:00:04]} 1/2-1/2

[Event "106th British-ch 2019"]
[Site "Torquay"]
[Date "2019.07.30"]
[Round "4.3"]
[White "Houska, Jovanka"]
[Black "Tan, Justin Hy"]
[Result "0-1"]
[ECO "D48"]
[WhiteElo "2422"]
[BlackElo "2513"]
[Annotator "ChessBase"]
[PlyCount "96"]
[EventDate "2019.07.27"]
[EventType "swiss"]
[EventCountry "GBR"]
[SourceTitle "playchess.com"]
[Source "ChessBase"]
[SourceQuality "1"]
[TimeControl "40/5400+30:1800+30"]

1. d4 {[%emt 0:00:00]} Nf6 {[%emt 0:00:00]} 2. c4 {[%emt 0:00:21]} e6 {[%emt 0:00:16]} 3. Nf3 {[%emt 0:00:24]} d5 {[%emt 0:00:10]} 4. Nc3 {[%emt 0:00:09]} c6 {[%emt 0:00:48]} 5. e3 {[%emt 0:00:30]} Nbd7 {[%emt 0:00:22]} 6. Bd3 {[%emt 0:00:05]} dxc4 {[%emt 0:00:10]} 7. Bxc4 {[%emt 0:00:04]} b5 {[%emt 0:00:04]} 8. Bd3 {[%emt 0:00:13]} Bb7 {[%emt 0:05:50]} 9. O-O {[%emt 0:05:14]} a6 {[%emt 0:00:05]} 10. e4 {[%emt 0:08:13]} c5 {[%emt 0:00:18]} 11. d5 {[%emt 0:00:22]} Qc7 {[%emt 0:02:43]} 12. Qe2 {[%emt 0:01:59]} c4 {[%emt 0:03:05]} 13. Bc2 {[%emt 0:00:34]} Bd6 {[%emt 0:10:46]} 14. Bg5 {[%emt 0:17:49]} O-O-O {[%emt 0:06:23]} 15. dxe6 {[%emt 0:04:59]} fxe6 {[%emt 0:00:04]} 16. Rad1 {[%emt 0:00:30]} h6 {[%emt 0:05:38]} 17. Bc1 {[%emt 0:05:17]} g5 {[%emt 0:15:50]} 18. Nd4 {[%emt 0:14:18]} Nc5 {[%emt 0:11:23]} 19. b4 {[%emt 0:02:51]} cxb3 {[%emt 0:02:14]} 20. axb3 {[%emt 0:04:16]} Bxh2+ {[%emt 0:01:18]} 21. Kh1 {[%emt 0:00:03]} Be5 {[%emt 0:06:44]} 22. Be3 {[%emt 0:00:24]} Bxd4 {[%emt 0:09:23]} 23. Rxd4 {[%emt 0:02:53]} Rxd4 {[%emt 0:02:40]} 24. Bxd4 {[%emt 0:00:06]} e5 {[%emt 0:00:21]} 25. Be3 {[%emt 0:01:21]} Kb8 {[%emt 0:00:13]} 26. Nd5 {[%emt 0:03:19]} Nxd5 {[%emt 0:00:53]} 27. exd5 {[%emt 0:00:05]} Nd7 {[%emt 0:01:27]} 28. Rd1 {[%emt 0:09:08]} Qd6 {[%emt 0:00:01]} 29. Bf5 {[%emt 0:01:29]} Rd8 {[%emt 0:01:50]} 30. Bc1 {[%emt 0:12:50]} Re8 {[%emt 0:02:43]} 31. Ba3 {[%emt 0:04:35]} Qxa3 {[%emt 0:00:26]} 32. Bxd7 {[%emt 0:00:03]} Re7 {[%emt 0:00:05]} 33. Be6 {[%emt 0:00:03]} Qd6 {[%emt 0:00:24]} 34. Qc2 {[%emt 0:01:11]} Ka7 {[%emt 0:05:16]} 35. Kg1 {[%emt 0:00:25]} b4 {[%emt 0:01:07]} 36. Kh1 {[%emt 0:01:20]} Rc7 {[%emt 0:03:20]} 37. Qg6 {[%emt 0:00:04]} Rc5 {[%emt 0:00:00]} 38. Qf7 {[%emt 0:00:50]} Kb6 {[%emt 0:00:17]} 39. Kg1 {[%emt 0:00:30]} a5 {[%emt 0:00:39]} 40. Kh1 {[%emt 0:00:36]} Rc3 {[%emt 0:01:36]} 41. Rb1 {[%emt 0:11:10]} Rd3 {[%emt 0:05:49]} 42. Rc1 {[%emt 0:00:38]} Rxb3 {[%emt 0:03:09]} 43. Bc8 {[%emt 0:00:08]} Bxd5 {[%emt 0:01:10]} 44. Qh7 {[%emt 0:02:47]} Rc3 {[%emt 0:00:45]} 45. Rxc3 {[%emt 0:02:53]} bxc3 {[%emt 0:00:02]} 46. Qb1+ {[%emt 0:00:17]} Kc5 {[%emt 0:02:35]} 47. Qa1 {[%emt 0:00:21]} Kb4 {[%emt 0:00:19]} 48. Qb1+ {[%emt 0:00:14]} Bb3 {[%emt 0:00:07]} 0-1

[Event "106th British-ch 2019"]
[Site "Torquay"]
[Date "2019.07.30"]
[Round "4.5"]
[White "Emms, John M"]
[Black "Pert, Richard G"]
[Result "1/2-1/2"]
[ECO "C03"]
[WhiteElo "2481"]
[BlackElo "2430"]
[Annotator "ChessBase"]
[PlyCount "90"]
[EventDate "2019.07.27"]
[EventType "swiss"]
[EventCountry "GBR"]
[SourceTitle "playchess.com"]
[Source "ChessBase"]
[SourceQuality "1"]
[TimeControl "40/5400+30:1800+30"]

1. e4 {[%emt 0:00:00]} e6 {[%emt 0:00:00]} 2. d4 {[%emt 0:00:00]} d5 {[%emt 0:00:00]} 3. Nd2 {[%emt 0:00:05]} Be7 {[%emt 0:00:00]} 4. Bd3 {[%emt 0:01:10]} c5 {[%emt 0:00:46]} 5. dxc5 {[%emt 0:00:26]} Nf6 {[%emt 0:01:03]} 6. Qe2 {[%emt 0:00:18]} O-O {[%emt 0:01:34]} 7. Ngf3 {[%emt 0:01:14]} a5 {[%emt 0:00:53]} 8. O-O {[%emt 0:00:47]} Na6 {[%emt 0:01:02]} 9. e5 {[%emt 0:00:31]} Nd7 {[%emt 0:00:28]} 10. c3 {[%emt 0:00:13]} Naxc5 {[%emt 0:01:00]} 11. Bc2 {[%emt 0:00:11]} b6 {[%emt 0:01:19]} 12. Re1 {[%emt 0:03:14]} f6 {[%emt 0:01:01]} 13. exf6 {[%emt 0:00:50]} Bxf6 {[%emt 0:00:57]} 14. Nb3 {[%emt 0:01:22]} Ba6 {[%emt 0:01:20]} 15. Qd1 {[%emt 0:01:55]} Ne4 {[%emt 0:02:17]} 16. a4 {[%emt 0:02:43]} Ndc5 {[%emt 0:30:42]} 17. Nxc5 {[%emt 0:10:54]} bxc5 {[%emt 0:04:09]} 18. Bxe4 {[%emt 0:09:19]} dxe4 {[%emt 0:00:06]} 19. Qxd8 {[%emt 0:00:12]} Rfxd8 {[%emt 0:00:17]} 20. Ng5 {[%emt 0:09:38]} Bxg5 {[%emt 0:03:11]} 21. Bxg5 {[%emt 0:00:45]} Rd5 {[%emt 0:00:16]} 22. Bf4 {[%emt 0:04:56]} Bd3 {[%emt 0:02:00]} 23. c4 {[%emt 0:02:25]} Bxc4 {[%emt 0:04:30]} 24. Rxe4 {[%emt 0:00:48]} Rd4 {[%emt 0:00:39]} 25. f3 {[%emt 0:11:49]} Rxe4 {[%emt 0:08:03]} 26. fxe4 {[%emt 0:00:04]} Bd3 {[%emt 0:00:11]} 27. b3 {[%emt 0:06:39]} Bxe4 {[%emt 0:01:23]} 28. Rc1 {[%emt 0:01:00]} Rc8 {[%emt 0:08:30]} 29. Be3 {[%emt 0:08:40]} Bd5 {[%emt 0:00:48]} 30. Rxc5 {[%emt 0:01:09]} Rxc5 {[%emt 0:00:09]} 31. Bxc5 {[%emt 0:00:06]} Bxb3 {[%emt 0:00:07]} 32. Bb6 {[%emt 0:00:07]} Bxa4 {[%emt 0:00:08]} 33. Bxa5 {[%emt 0:00:04]} Kf7 {[%emt 0:03:05]} 34. h4 {[%emt 0:01:09]} Kf6 {[%emt 0:00:36]} 35. g3 {[%emt 0:00:31]} Kf5 {[%emt 0:00:38]} 36. Kf2 {[%emt 0:00:06]} Ke4 {[%emt 0:00:28]} 37. Bb6 {[%emt 0:00:25]} Be8 {[%emt 0:00:49]} 38. Ba7 {[%emt 0:00:45]} Bh5 {[%emt 0:00:29]} 39. Bb6 {[%emt 0:00:14]} Bg4 {[%emt 0:00:18]} 40. Ba7 {[%emt 0:00:12]} e5 {[%emt 0:00:40]} 41. Bb6 {[%emt 0:30:35]} Kf5 {[%emt 0:30:29]} 42. Ba7 {[%emt 0:01:13]} e4 {[%emt 0:00:17]} 43. Bd4 {[%emt 0:00:37]} g5 {[%emt 0:00:15]} 44. hxg5 {[%emt 0:00:13]} Kxg5 {[%emt 0:00:07]} 45. Be3+ {[%emt 0:00:15]} Kf5 {[%emt 0:00:29]} 1/2-1/2

[Event "106th British-ch 2019"]
[Site "Torquay"]
[Date "2019.07.30"]
[Round "4.6"]
[White "Zapolskis, Antanas"]
[Black "Williams, Simon K"]
[Result "0-1"]
[ECO "B06"]
[WhiteElo "2290"]
[BlackElo "2468"]
[Annotator "ChessBase"]
[PlyCount "98"]
[EventDate "2019.07.27"]
[EventType "swiss"]
[EventCountry "GBR"]
[SourceTitle "playchess.com"]
[Source "ChessBase"]
[SourceQuality "1"]
[TimeControl "40/5400+30:1800+30"]

1. e4 {[%emt 0:00:00]} g6 {[%emt 0:00:00]} 2. d4 {[%emt 0:00:00]} Bg7 {[%emt 0:00:33]} 3. Nc3 {[%emt 0:00:44]} d6 {[%emt 0:00:49]} 4. Be3 {[%emt 0:01:08]} a6 {[%emt 0:00:33]} 5. a4 {[%emt 0:04:53]} b6 {[%emt 0:00:43]} 6. Qd2 {[%emt 0:06:42]} Bb7 {[%emt 0:02:36]} 7. f3 {[%emt 0:01:30]} Nf6 {[%emt 0:12:36]} 8. Bh6 {[%emt 0:01:26]} Bxh6 {[%emt 0:00:27]} 9. Qxh6 {[%emt 0:00:09]} e5 {[%emt 0:00:24]} 10. dxe5 {[%emt 0:04:09]} dxe5 {[%emt 0:00:12]} 11. Bc4 {[%emt 0:00:12]} Nbd7 {[%emt 0:19:19]} 12. Nh3 {[%emt 0:08:05]} Ng8 {[%emt 0:06:19]} 13. Qe3 {[%emt 0:27:32]} Qh4+ {[%emt 0:05:30]} 14. Nf2 {[%emt 0:00:21]} Qh6 {[%emt 0:00:21]} 15. Qe2 {[%emt 0:00:23]} Ngf6 {[%emt 0:00:46]} 16. O-O {[%emt 0:05:10]} Qf8 {[%emt 0:05:18]} 17. Nd3 {[%emt 0:00:25]} Qe7 {[%emt 0:01:15]} 18. f4 {[%emt 0:05:46]} O-O {[%emt 0:01:02]} 19. Nd5 {[%emt 0:04:48]} Nxd5 {[%emt 0:01:24]} 20. exd5 {[%emt 0:00:09]} e4 {[%emt 0:01:33]} 21. f5 {[%emt 0:00:43]} Rae8 {[%emt 0:04:57]} 22. Rae1 {[%emt 0:01:37]} Nf6 {[%emt 0:04:19]} 23. Kh1 {[%emt 0:16:39]} Qd6 {[%emt 0:02:39]} 24. Nf4 {[%emt 0:00:13]} a5 {[%emt 0:02:36]} 25. Bb5 {[%emt 0:04:26]} Re5 {[%emt 0:00:10]} 26. fxg6 {[%emt 0:00:09]} hxg6 {[%emt 0:00:22]} 27. c4 {[%emt 0:00:09]} Kg7 {[%emt 0:00:48]} 28. Qf2 {[%emt 0:00:40]} Rh8 {[%emt 0:04:45]} 29. Qg3 {[%emt 0:00:26]} Bc8 {[%emt 0:01:42]} 30. h3 {[%emt 0:03:24]} Rf5 {[%emt 0:05:07]} 31. Ne2 {[%emt 0:00:34]} Rxf1+ {[%emt 0:09:56]} 32. Rxf1 {[%emt 0:00:05]} Qxg3 {[%emt 0:01:49]} 33. Nxg3 {[%emt 0:00:03]} Rh4 {[%emt 0:00:06]} 34. Re1 {[%emt 0:01:05]} Kf8 {[%emt 0:00:57]} 35. Kg1 {[%emt 0:00:40]} Ke7 {[%emt 0:01:28]} 36. Kf2 {[%emt 0:00:16]} Kd6 {[%emt 0:00:08]} 37. Ke3 {[%emt 0:00:10]} Ke5 {[%emt 0:00:11]} 38. Nf1 {[%emt 0:01:21]} Nd7 {[%emt 0:01:08]} 39. Kf2 {[%emt 0:01:39]} f5 {[%emt 0:00:20]} 40. Nd2 {[%emt 0:00:12]} Kd6 {[%emt 0:00:30]} 41. Nf3 {[%emt 0:03:43]} Rh8 {[%emt 0:00:58]} 42. Ng5 {[%emt 0:13:39]} Ne5 {[%emt 0:00:17]} 43. c5+ {[%emt 0:10:27]} bxc5 {[%emt 0:00:35]} 44. g3 {[%emt 0:00:32]} c4 {[%emt 0:01:06]} 45. Ke3 {[%emt 0:02:08]} Kxd5 {[%emt 0:00:18]} 46. Rd1+ {[%emt 0:03:02]} Kc5 {[%emt 0:00:17]} 47. Ba6 {[%emt 0:01:09]} Bxa6 {[%emt 0:00:40]} 48. Ne6+ {[%emt 0:00:01]} Kb6 {[%emt 0:00:27]} 49. Rd5 {[%emt 0:00:31]} Nd3 {[%emt 0:00:20]} 0-1

[Event "106th British-ch 2019"]
[Site "Torquay"]
[Date "2019.07.30"]
[Round "4.7"]
[White "Wadsworth, Matthew J"]
[Black "Pein, Malcolm"]
[Result "1-0"]
[ECO "A24"]
[WhiteElo "2418"]
[BlackElo "2312"]
[Annotator "NA"]
[PlyCount "85"]
[EventDate "2019.07.27"]
[EventType "swiss"]
[EventCountry "GBR"]
[SourceTitle "playchess.com"]
[Source "ChessBase"]
[SourceQuality "1"]
[TimeControl "40/5400+30:1800+30"]

1. Nf3 {[%emt 0:00:00]} Nf6 {[%emt 0:00:00]} 2. c4 {[%emt 0:00:00]} g6 {[%emt 0:00:13]} 3. g3 {[%emt 0:00:10]} Bg7 {[%emt 0:00:06]} 4. Bg2 {[%emt 0:00:22]} O-O {[%emt 0:00:23]} 5. O-O {[%emt 0:00:11]} d6 {[%emt 0:00:37]} 6. Nc3 {[%emt 0:00:21]} e5 {[%emt 0:00:50]} 7. d3 {[%emt 0:00:13]} c6 {[%emt 0:01:18]} 8. Rb1 {[%emt 0:01:37]} a5 {[%emt 0:00:06]} 9. a3 {[%emt 0:02:54]} Re8 {[%emt 0:01:05]} 10. e4 {[%emt 0:04:19]} Na6 {[%emt 0:05:49]} 11. b4 {[%emt 0:06:54]} axb4 {[%emt 0:00:10]} 12. axb4 {[%emt 0:00:04]} h6 {[%emt 0:09:46]} 13. b5 {[%emt 0:10:24]} Nc5 {[%emt 0:00:41]} 14. Be3 {[%emt 0:00:07]} Ra3 {[%emt 0:17:11]} 15. Bxc5 {[%emt 0:06:10]} dxc5 {[%emt 0:00:19]} 16. Qc1 {[%emt 0:00:08]} Ra8 {[%emt 0:06:58]} 17. bxc6 {[%emt 0:02:57]} bxc6 {[%emt 0:00:03]} 18. Rd1 {[%emt 0:00:07]} Bg4 {[%emt 0:04:38]} 19. Ra1 {[%emt 0:12:10]} Nd7 {[%emt 0:03:35]} 20. Qe3 {[%emt 0:08:06]} Qf6 {[%emt 0:03:20]} 21. Rdb1 {[%emt 0:02:36]} Bxf3 {[%emt 0:05:54]} 22. Bxf3 {[%emt 0:00:08]} h5 {[%emt 0:03:15]} 23. Bg2 {[%emt 0:03:00]} Kh7 {[%emt 0:04:09]} 24. Bh3 {[%emt 0:01:40]} Bh6 {[%emt 0:00:09]} 25. Qe2 {[%emt 0:00:36]} Nf8 {[%emt 0:00:08]} 26. Na4 {[%emt 0:03:53]} Qe7 {[%emt 0:10:48]} 27. Qb2 {[%emt 0:05:19]} Kg8 {[%emt 0:02:38]} 28. Qb6 {[%emt 0:02:37]} Bd2 {[%emt 0:06:28]} 29. Qxc6 {[%emt 0:02:16]} Nh7 {[%emt 0:05:11]} 30. Nb6 {[%emt 0:04:29]} Rxa1 {[%emt 0:00:33]} 31. Rxa1 {[%emt 0:00:04]} Rb8 {[%emt 0:04:22]} 32. Nd5 {[%emt 0:07:19]} Qb7 {[%emt 0:01:33]} 33. Qxc5 {[%emt 0:00:52]} Qb2 {[%emt 0:00:11]} 34. Rf1 {[%emt 0:00:16]} Ng5 {[%emt 0:00:07]} 35. Kg2 {[%emt 0:00:33]} Bc3 {[%emt 0:03:11]} 36. Qe7 {[%emt 0:02:48]} Nxh3 {[%emt 0:01:12]} 37. Kxh3 {[%emt 0:00:39]} Bd4 {[%emt 0:00:26]} 38. Qf6 {[%emt 0:00:29]} Bc5 {[%emt 0:00:36]} 39. Kg2 {[%emt 0:04:53]} Qd4 {[%emt 0:00:29]} 40. f4 {[%emt 0:04:59]} Rb2+ {[%emt 0:00:29]} 41. Kh3 {[%emt 0:30:01]} Qxd3 {[%emt 0:23:10]} 42. fxe5 {[%emt 0:00:00]} Kh7 {[%emt 0:01:22]} 43. Qxf7+ {[%emt 0:00:00]} 1-0

[Event "106th British-ch 2019"]
[Site "Torquay"]
[Date "2019.07.30"]
[Round "4.9"]
[White "Toma, Katarzyna"]
[Black "Ashton, Adam G"]
[Result "1/2-1/2"]
[ECO "C83"]
[WhiteElo "2229"]
[BlackElo "2323"]
[Annotator "NA"]
[PlyCount "55"]
[EventDate "2019.07.27"]
[EventType "swiss"]
[EventCountry "GBR"]
[SourceTitle "playchess.com"]
[Source "ChessBase"]
[SourceQuality "1"]
[TimeControl "40/5400+30:1800+30"]

1. e4 {[%emt 0:00:00]} e5 {[%emt 0:00:00]} 2. Nf3 {[%emt 0:00:00]} Nc6 {[%emt 0:00:00]} 3. Bb5 {[%emt 0:00:00]} a6 {[%emt 0:00:00]} 4. Ba4 {[%emt 0:00:00]} Nf6 {[%emt 0:00:00]} 5. O-O {[%emt 0:00:25]} Nxe4 {[%emt 0:01:46]} 6. d4 {[%emt 0:15:47]} b5 {[%emt 0:00:12]} 7. Bb3 {[%emt 0:00:29]} d5 {[%emt 0:00:09]} 8. dxe5 {[%emt 0:05:53]} Be6 {[%emt 0:00:15]} 9. c3 {[%emt 0:01:08]} Be7 {[%emt 0:01:45]} 10. Re1 {[%emt 0:04:23]} O-O {[%emt 0:04:00]} 11. Nbd2 {[%emt 0:04:12]} Nc5 {[%emt 0:03:08]} 12. Bc2 {[%emt 0:01:41]} d4 {[%emt 0:03:34]} 13. Ne4 {[%emt 0:04:36]} d3 {[%emt 0:20:53]} 14. Nxc5 {[%emt 0:05:08]} dxc2 {[%emt 0:06:04]} 15. Qxd8 {[%emt 0:00:48]} Raxd8 {[%emt 0:02:15]} 16. Nxe6 {[%emt 0:00:29]} fxe6 {[%emt 0:00:08]} 17. Be3 {[%emt 0:02:55]} Rf5 {[%emt 0:11:22]} 18. Rec1 {[%emt 0:03:10]} Nxe5 {[%emt 0:07:45]} 19. Nxe5 {[%emt 0:10:56]} Rxe5 {[%emt 0:00:12]} 20. Rxc2 {[%emt 0:00:07]} Bc5 {[%emt 0:03:38]} 21. Bf4 {[%emt 0:04:34]} Red5 {[%emt 0:03:06]} 22. Re1 {[%emt 0:00:13]} Rd1 {[%emt 0:14:51]} 23. Kf1 {[%emt 0:01:21]} Kf7 {[%emt 0:01:25]} 24. Bxc7 {[%emt 0:15:18]} R8d2 {[%emt 0:02:53]} 25. Rxd2 {[%emt 0:00:32]} Rxd2 {[%emt 0:00:05]} 26. Re2 {[%emt 0:00:11]} Rd1+ {[%emt 0:00:08]} 27. Re1 {[%emt 0:00:05]} Rd2 {[%emt 0:00:04]} 28. Re2 {[%emt 0:00:07]} 1/2-1/2

[Event "106th British-ch 2019"]
[Site "Torquay"]
[Date "2019.07.30"]
[Round "4.10"]
[White "D'costa, Lorin Ar"]
[Black "Claridge-Hansen, William"]
[Result "1-0"]
[ECO "A57"]
[WhiteElo "2396"]
[BlackElo "2297"]
[Annotator "NA"]
[PlyCount "91"]
[EventDate "2019.07.27"]
[EventType "swiss"]
[EventCountry "GBR"]
[SourceTitle "playchess.com"]
[Source "ChessBase"]
[SourceQuality "1"]
[TimeControl "40/5400+30:1800+30"]

1. d4 {[%emt 0:01:52]} Nf6 {[%emt 0:00:00]} 2. c4 {[%emt 0:00:12]} c5 {[%emt 0:00:32]} 3. d5 {[%emt 0:00:31]} b5 {[%emt 0:00:13]} 4. Qc2 {[%emt 0:00:55]} bxc4 {[%emt 0:00:59]} 5. e4 {[%emt 0:00:19]} e6 {[%emt 0:00:55]} 6. Bxc4 {[%emt 0:20:22]} exd5 {[%emt 0:01:06]} 7. exd5 {[%emt 0:00:15]} d6 {[%emt 0:00:55]} 8. Nc3 {[%emt 0:02:42]} Be7 {[%emt 0:03:11]} 9. Nf3 {[%emt 0:10:11]} O-O {[%emt 0:04:21]} 10. O-O {[%emt 0:02:10]} Nbd7 {[%emt 0:05:10]} 11. b3 {[%emt 0:10:12]} Nb6 {[%emt 0:03:19]} 12. h3 {[%emt 0:01:31]} Rb8 {[%emt 0:08:31]} 13. Qd3 {[%emt 0:08:09]} Nxc4 {[%emt 0:12:51]} 14. bxc4 {[%emt 0:00:58]} Ba6 {[%emt 0:13:18]} 15. a4 {[%emt 0:07:29]} Nd7 {[%emt 0:09:07]} 16. Nb5 {[%emt 0:02:44]} Rb7 {[%emt 0:05:09]} 17. Bf4 {[%emt 0:02:35]} Bxb5 {[%emt 0:03:15]} 18. axb5 {[%emt 0:00:27]} Nb6 {[%emt 0:03:05]} 19. Ra2 {[%emt 0:03:53]} Bf6 {[%emt 0:01:35]} 20. Nd2 {[%emt 0:08:15]} Re8 {[%emt 0:02:37]} 21. Nb3 {[%emt 0:02:46]} Qe7 {[%emt 0:02:44]} 22. Bd2 {[%emt 0:06:09]} g6 {[%emt 0:02:55]} 23. Na5 {[%emt 0:00:54]} Rd7 {[%emt 0:00:57]} 24. Re1 {[%emt 0:00:27]} Qf8 {[%emt 0:00:35]} 25. Nc6 {[%emt 0:00:25]} Rxe1+ 26. Bxe1 {[%emt 0:00:01]} Qh6 {[%emt 0:06:02]} 27. Bd2 {[%emt 0:02:58]} Qh4 {[%emt 0:00:29]} 28. Rc2 {[%emt 0:00:40]} Bd4 {[%emt 0:02:27]} 29. Ba5 {[%emt 0:01:39]} Kg7 {[%emt 0:04:52]} 30. Kh2 {[%emt 0:01:11]} Bxf2 {[%emt 0:00:50]} 31. g3 {[%emt 0:00:26]} Bxg3+ {[%emt 0:00:54]} 32. Qxg3 {[%emt 0:00:08]} Qe4 {[%emt 0:00:11]} 33. Qc3+ {[%emt 0:00:40]} f6 {[%emt 0:01:17]} 34. Bxb6 {[%emt 0:01:00]} Qf4+ {[%emt 0:00:31]} 35. Qg3 {[%emt 0:00:43]} Qe4 {[%emt 0:00:12]} 36. Rf2 {[%emt 0:01:04]} axb6 {[%emt 0:00:06]} 37. Qg4 {[%emt 0:00:30]} Qe3 {[%emt 0:02:41]} 38. Qf3 {[%emt 0:00:59]} Qg5 {[%emt 0:00:18]} 39. Qe4 {[%emt 0:00:32]} f5 {[%emt 0:00:46]} 40. Qe6 {[%emt 0:00:20]} Rf7 {[%emt 0:00:32]} 41. Qxd6 {[%emt 0:30:36]} Qh4 {[%emt 0:03:33]} 42. Qf4 {[%emt 0:00:00]} Qh5 {[%emt 0:01:13]} 43. Nd8 {[%emt 0:00:00]} Ra7 {[%emt 0:01:21]} 44. Ne6+ {[%emt 0:00:00]} Kf6 {[%emt 0:01:02]} 45. Qb8 {[%emt 0:00:00]} Ra3 {[%emt 0:01:27]} 46. Qh8+ {[%emt 0:00:00]} 1-0